bitfinex-derivatives/quotes_BNBF0:USTF0_20250521
["timestamp","ask_amount","ask_price","bid_price","bid_amount"]
[1747791938383,0.26724929,651.83,650.68,0.58699263]
[1747791938584,0.26724929,651.83,650.69,0.58699263]
[1747791938785,0.26724929,651.83,650.7,1.54640579]
[1747791938980,0.26724929,651.83,650.71,0.58699263]
[1747791939185,0.26724929,651.83,650.72,0.58699263]
[1747791939381,0.26724929,651.83,650.73,0.58699263]
[1747791939586,0.26724929,651.83,650.74,0.58699263]
[1747791939786,0.26724929,651.83,650.75,0.58699263]
[1747791940087,0.26724929,651.83,650.74,0.30728816]
[1747791940291,0.26724929,651.83,650.75,0.58697303]
[1747791940487,0.26724929,651.83,650.74,0.30728816]
[1747791940680,0.26724929,651.83,650.75,0.58699666]
[1747791940881,0.26724929,651.83,650.74,0.30728816]
[1747791941083,0.26724929,651.83,650.75,0.58699531]
[1747791941282,3.81137605,651.8,650.75,0.30728816]
[1747791942589,3.81137605,651.8,650.76,0.30728816]
[1747791943796,0.26724519,651.79,650.76,0.30728816]
[1747791944292,1.485,651.78,650.77,0.30728816]
[1747791944892,1.485,651.78,650.58,1.304]
[1747791945191,1.485,651.78,650.59,1.54784438]
[1747791945392,1.485,651.78,650.6,0.58734379]
[1747791945591,1.485,651.78,650.61,0.58734379]
[1747791945787,1.485,651.78,650.62,0.58734379]
[1747791945993,1.485,651.78,650.63,0.58734379]
[1747791946186,1.485,651.78,650.64,0.307331]
[1747791946493,0.26726468,651.77,650.64,0.307331]
[1747791947294,0.26726468,651.77,650.65,0.307331]
[1747791948693,1.485,651.78,650.65,0.307331]
[1747791948894,1.485,651.78,650.66,0.307331]
[1747791949693,0.26726982,651.77,650.66,0.307331]
[1747791949993,0.26726982,651.77,650.67,0.307331]
[1747791950493,0.26726982,651.77,650.68,0.307331]
[1747791951690,1.485,651.78,650.68,0.307331]
[1747791951994,0.26726982,651.76,650.68,0.307331]
[1747791952197,0.26726982,651.76,650.69,0.307331]
[1747791953798,0.26726982,651.76,650.7,0.307331]
[1747791954995,0.26726982,651.76,650.48,0.2568918]
[1747791955197,0.26726982,651.76,650.49,0.58738775]
[1747791955496,0.26726982,651.76,650.5,1.54921094]
[1747791955695,0.26726982,651.76,650.51,0.58738775]
[1747791955892,0.26726982,651.76,650.52,1.54921094]
[1747791956094,0.26726982,651.76,650.53,0.58738775]
[1747791956397,0.26726982,651.76,650.54,1.54921094]
[1747791956592,0.26726982,651.76,650.55,0.58738775]
[1747791956898,0.26726982,651.76,650.56,0.58738775]
[1747791957095,0.26726982,651.76,650.57,0.58738775]
[1747791957295,0.26726982,651.76,650.58,1.54921094]
[1747791957499,0.26726982,651.76,650.59,0.58738775]
[1747791957693,3.81137605,651.88,650.6,1.54925417]
[1747791957892,3.81137605,651.88,650.61,0.58743098]
[1747791958094,3.81137605,651.88,650.62,1.54925417]
[1747791958292,3.81137605,651.88,650.63,0.58743098]
[1747791958597,3.81137605,651.88,650.64,0.58743098]
[1747791958795,3.81137605,651.88,650.65,1.54925417]
[1747791958996,0.2672534,651.87,650.66,0.58743098]
[1747791959197,0.2672534,651.87,650.67,0.58743098]
[1747791959400,0.2672534,651.87,650.68,0.58743098]
[1747791959598,0.2672534,651.87,650.69,0.58745935]
[1747791959894,0.2672534,651.87,650.68,0.30733149]
[1747791960098,0.2672534,651.87,650.69,0.58742039]
[1747791960299,1.135,651.86,650.7,0.58742039]
[1747791960497,1.135,651.86,650.68,0.30733149]
[1747791960699,1.135,651.86,650.69,0.58740359]
[1747791960998,1.135,651.86,650.7,0.58740359]
[1747791961198,1.135,651.86,650.7,0.30733149]
[1747791962192,1.135,651.86,650.71,0.89473807]
[1747791962394,1.135,651.86,650.71,0.30733149]
[1747791963000,1.135,651.86,650.72,0.30733149]
[1747791963201,3.81137605,651.72,650.5,0.2568918]
[1747791963395,3.81137605,651.72,650.51,1.54879469]
[1747791963598,3.81137605,651.72,650.52,0.58743628]
[1747791963904,3.81137605,651.72,650.53,0.30732505]
[1747791964703,3.81137605,651.72,650.54,0.89477956]
[1747791965002,3.81137605,651.72,650.55,0.58745451]
[1747791965203,3.81137605,651.72,650.54,0.30732505]
[1747791965402,3.81137605,651.72,650.55,0.30732505]
[1747791965605,3.81137605,651.72,650.56,0.58745706]
[1747791966103,3.81137605,651.72,650.55,0.30732505]
[1747791966403,3.81137605,651.72,650.56,0.58737709]
[1747791966607,3.81137605,651.72,650.57,0.58737709]
[1747791966903,3.81137605,651.72,650.58,0.89470214]
[1747791967300,3.81137605,651.72,650.58,0.30732505]
[1747791967503,3.81137605,651.72,650.59,0.58737621]
[1747791967697,3.81137605,651.72,650.58,0.30732505]
[1747791967901,3.81137605,651.72,650.59,0.58735274]
[1747791968113,3.81137605,651.72,650.6,0.30732505]
[1747791968401,3.81137605,651.72,650.61,0.5873542]
[1747791968704,3.81137605,651.72,650.62,1.54871261]
[1747791969004,3.81137605,651.72,650.63,1.54871261]
[1747791969203,3.81137605,651.72,650.64,1.54871261]
[1747791969398,3.81137605,651.72,650.65,0.5873542]
[1747791969600,3.81137605,651.72,650.66,0.5873542]
[1747791969798,3.81137605,651.72,650.67,0.5873542]
[1747791970004,3.81137605,651.72,650.68,0.58732117]
[1747791970203,3.81137605,651.72,650.69,0.58732117]
[1747791970405,3.81137605,651.72,650.7,1.54867958]
[1747791970702,3.81137605,651.72,650.71,0.58732117]
[1747791970903,3.81137605,651.72,650.72,0.58732117]
[1747791971103,0.26724724,651.71,650.73,0.58732117]
[1747791971302,0.26724724,651.71,650.72,0.30732505]
[1747791971303,0.26724724,651.71,650.74,0.58732117]
[1747791971501,0.26724724,651.71,650.72,0.30732505]
[1747791971701,0.26724724,651.71,650.73,0.58730814]
[1747791971900,0.26724724,651.71,650.74,0.58730814]
[1747791972100,0.26724724,651.71,650.72,0.30732505]
[1747791972300,0.26724724,651.71,650.74,0.30732505]
[1747791973003,0.26724724,651.71,650.75,0.30732505]
[1747791973504,3.81137605,651.72,650.75,0.30732505]
[1747791973805,1.135,651.86,650.76,0.30732505]
[1747791974005,0.26726879,651.71,650.76,0.30732505]
[1747791974205,1.135,651.86,650.76,0.30732505]
[1747791974407,1.135,651.86,650.49,1.4448918]
[1747791974706,1.135,651.86,650.5,0.58719338]
[1747791975006,1.135,651.86,650.51,0.58719338]
[1747791975209,0.26727495,651.85,650.52,0.58719338]
[1747791975411,0.26727495,651.85,650.51,0.30736417]
[1747791975912,0.26727495,651.85,650.49,1.188]
[1747791976509,1.135,651.86,650.49,1.188]
[1747791977814,0.26730574,651.85,650.49,1.188]
[1747791978712,0.26730574,651.85,650.5,0.58690221]
[1747791978911,0.26730574,651.85,650.49,1.188]
[1747791979116,1.135,651.86,650.5,0.58690941]
[1747791979311,1.135,651.86,650.49,1.188]
[1747791979511,0.26728726,651.84,650.5,0.58680535]
[1747791979708,0.26728726,651.84,650.51,0.58680535]
[1747791979911,0.26728726,651.84,650.5,0.30739422]
[1747791980111,0.26728726,651.84,650.51,0.58679911]
[1747791980316,0.26728726,651.84,650.14,0.2568918]
[1747791980515,0.26728726,651.84,650.15,0.58673307]
[1747791980715,0.26728726,651.84,650.16,0.58673307]
[1747791980916,0.26728726,651.84,650.17,0.58673307]
[1747791981216,0.26728726,651.84,650.18,0.58673307]
[1747791981416,0.26728726,651.84,650.19,0.58673307]
[1747791981616,0.26728726,651.84,650.2,1.54804436]
[1747791981817,0.26728726,651.84,650.21,0.58673307]
[1747791982017,0.26728726,651.84,650.22,1.54801577]
[1747791982217,0.26728726,651.84,650.23,0.58675817]
[1747791982417,0.26728726,651.84,650.24,0.58675817]
[1747791982716,1.135,651.86,650.24,0.58675817]
[1747791982717,1.135,651.86,650.25,1.54801577]
[1747791983016,1.135,651.86,650.26,1.54801577]
[1747791983318,1.135,651.86,650.27,0.58675817]
[1747791983512,1.135,651.86,650.28,0.58675817]
[1747791983716,1.135,651.86,650.29,0.58675817]
[1747791983913,0.26730985,651.85,650.3,1.54801577]
[1747791984118,0.26730985,651.85,650.31,0.58675817]
[1747791984317,0.26730985,651.85,650.32,0.58675817]
[1747791984518,0.26730985,651.85,650.33,1.54801577]
[1747791984817,0.26730985,651.85,650.34,0.58675817]
[1747791985018,0.26730985,651.85,650.35,1.54801577]
[1747791985213,0.26730985,651.85,650.36,0.58675817]
[1747791985513,0.26730985,651.85,650.37,1.54801577]
[1747791985716,0.26730985,651.85,650.38,0.58675817]
[1747791985913,0.26730985,651.85,650.39,0.58675817]
[1747791986114,0.26730985,651.85,650.4,1.54801577]
[1747791986414,0.26730985,651.85,650.41,0.58675817]
[1747791986618,0.26730985,651.85,650.42,1.54801577]
[1747791986818,0.26730985,651.85,650.43,0.58675817]
[1747791987018,0.26730985,651.85,650.44,0.58675817]
[1747791987213,0.26730985,651.85,650.45,1.54780399]
[1747791987418,0.26730985,651.85,650.46,0.58675817]
[1747791987612,0.26730985,651.85,650.47,0.58675817]
[1747791987815,0.26730985,651.85,650.48,0.58675817]
[1747791988115,0.26730985,651.85,650.49,0.58675817]
[1747791988318,0.26730985,651.85,650.24,1.524]
[1747791988519,0.99617539,653.86,650.25,1.54829907]
[1747791988715,0.99617539,653.86,650.26,0.58684197]
[1747791988918,0.26709955,651.84,650.27,0.58684197]
[1747791989118,0.99617539,653.0,650.28,0.58684197]
[1747791989418,0.99617539,653.0,650.29,0.58684197]
[1747791989615,0.99617539,653.0,650.3,0.58684197]
[1747791989915,0.99617539,653.0,650.31,1.54829907]
[1747791990119,1.327,652.99,650.32,0.58684197]
[1747791990316,3.82634673,651.79,650.34,0.25713788]
[1747791990521,3.82634673,651.79,650.35,0.58684197]
[1747791990721,3.82634673,651.79,650.36,0.58684197]
[1747791990916,3.82634673,651.79,650.37,0.58684197]
[1747791991221,3.82634673,651.79,650.38,1.54829907]
[1747791991416,3.82634673,651.79,650.39,1.54829907]
[1747791991618,3.82634673,651.79,650.4,0.58684197]
[1747791991820,0.26729753,651.78,650.41,0.58684197]
[1747791992116,0.26729753,651.78,650.42,1.54829907]
[1747791992321,0.26729753,651.78,650.43,0.58684197]
[1747791992518,0.26729753,651.78,650.44,1.54829907]
[1747791992718,0.26729753,651.78,650.45,0.58684197]
[1747791992922,0.26729753,651.78,650.46,0.58684197]
[1747791993222,0.26729753,651.78,650.47,0.58684197]
[1747791993422,0.26729753,651.78,650.48,0.58684197]
[1747791993618,0.26729753,651.78,650.49,0.58684197]
[1747791993820,0.26729753,651.78,650.5,0.89420388]
[1747791994123,0.26729753,651.78,650.5,0.30736191]
[1747791994523,3.82634673,651.79,650.5,0.30736191]
[1747791994821,0.26729958,651.77,650.5,0.30736191]
[1747791995126,0.26729958,651.77,650.51,0.89441168]
[1747791995320,0.26729958,651.77,650.51,0.30736191]
[1747791996428,0.26729958,651.77,650.52,0.30736191]
[1747791997529,3.82634673,651.79,650.38,0.25713788]
[1747791997726,3.82634673,651.79,650.39,0.58693014]
[1747791997925,0.26729753,651.76,650.4,0.58693014]
[1747791998126,0.26729753,651.76,650.41,1.54239094]
[1747791998326,0.26729753,651.76,650.42,1.54239094]
[1747791998523,0.26729753,651.76,650.43,0.58693014]
[1747791998821,0.26729753,651.76,650.44,0.58693014]
[1747791999021,0.26729753,651.76,650.45,0.58693014]
[1747791999226,0.26729753,651.76,650.46,0.58693014]
[1747791999426,0.26729753,651.76,650.47,0.58693014]
[1747791999621,0.26729753,651.76,650.48,0.58693014]
[1747791999824,0.26729753,651.76,650.49,0.58693014]
[1747792000026,0.26729753,651.76,650.5,0.58693014]
[1747792000223,0.26729753,651.76,650.51,0.58693014]
[1747792000528,0.26729753,651.76,650.52,0.58706424]
[1747792000728,0.26729753,651.76,650.51,1.191]
[1747792000929,0.26729753,651.76,650.52,0.58706427]
[1747792001128,0.26729753,651.76,650.51,1.191]
[1747792001330,0.26729753,651.76,650.52,0.58706762]
[1747792001530,0.26729753,651.76,650.52,0.30736373]
[1747792002830,3.82634673,651.61,650.53,0.30736373]
[1747792003731,3.82634673,651.61,650.51,1.191]
[1747792003931,0.26730266,651.6,650.52,0.58724083]
[1747792004231,0.26730266,651.6,650.53,0.58725826]
[1747792004432,0.26730266,651.6,650.51,1.191]
[1747792004631,0.26730266,651.6,650.52,0.58724789]
[1747792004825,0.26730266,651.6,650.53,0.58724789]
[1747792005028,0.26730266,651.6,650.52,0.30736238]
[1747792005228,0.26730266,651.6,650.53,0.8946118]
[1747792005432,0.26730266,651.6,650.54,0.58724942]
[1747792005730,0.26730266,651.6,650.55,1.54331985]
[1747792005931,0.26730266,651.6,650.56,0.58724942]
[1747792006128,0.26730266,651.6,650.57,0.58724942]
[1747792006329,0.26730266,651.6,650.58,0.58724942]
[1747792006531,3.82634673,651.61,650.59,0.58724942]
[1747792006734,3.82634673,651.61,650.6,0.58724942]
[1747792006932,0.26729548,651.59,650.51,1.191]
[1747792007233,0.26729548,651.59,650.52,1.85073035]
[1747792007425,0.26729548,651.59,650.53,0.58727771]
[1747792007630,0.26729548,651.59,650.54,1.54336671]
[1747792007830,0.26729548,651.59,650.55,0.58727771]
[1747792008027,0.26729548,651.59,650.56,0.58727771]
[1747792008228,0.26729548,651.59,650.57,0.58728619]
[1747792008431,0.26729548,651.59,650.58,0.58728619]
[1747792008632,0.26729548,651.59,650.59,0.58728619]
[1747792008832,0.26729548,651.59,650.6,0.58728619]
[1747792009034,0.26729548,651.59,650.6,0.30736364]
[1747792009533,3.82634673,651.61,650.6,0.30736364]
[1747792009835,0.26730266,651.58,650.6,0.30736364]
[1747792010137,0.26730266,651.58,650.61,0.30736364]
[1747792011134,0.26730266,651.58,650.51,1.191]
[1747792011334,0.26730266,651.58,650.52,1.5434634]
[1747792011633,0.26730266,651.58,650.53,1.5434634]
[1747792011829,0.26730266,651.58,650.54,1.5434634]
[1747792012034,0.26730266,651.58,650.55,0.58731227]
[1747792012334,0.26730266,651.58,650.56,1.5434634]
[1747792012529,3.82634673,651.61,650.57,0.58731227]
[1747792012729,3.82634673,651.61,650.58,0.58731227]
[1747792012931,0.26729753,651.57,650.59,0.58731227]
[1747792013135,0.26729753,651.57,650.6,0.58731227]
[1747792013435,0.26729753,651.57,650.57,0.30736294]
[1747792013635,0.26729753,651.57,650.58,0.58732382]
[1747792013834,0.26729753,651.57,650.59,0.58732382]
[1747792014039,0.26729753,651.57,650.6,0.58732382]
[1747792014235,0.26729753,651.57,650.57,0.30736294]
[1747792014534,0.26729753,651.57,650.58,0.58731644]
[1747792014735,0.26729753,651.57,650.61,0.30736294]
[1747792015338,0.26729753,651.57,650.62,0.58731162]
[1747792015539,3.82634673,651.72,650.63,0.58731162]
[1747792015736,3.82634673,651.72,650.61,0.30736294]
[1747792015936,0.26728008,651.57,650.62,0.58732591]
[1747792016133,3.82634673,651.72,650.51,1.191]
[1747792016134,3.82634673,651.72,650.63,0.58732591]
[1747792016333,3.82634673,651.72,650.51,1.191]
[1747792016533,3.82634673,651.72,650.52,0.58734751]
[1747792016734,3.82634673,651.72,650.53,0.58734751]
[1747792016939,3.82634673,651.72,650.54,1.54353568]
[1747792017136,3.82634673,651.72,650.55,0.58734822]
[1747792017435,3.82634673,651.72,650.56,0.58734822]
[1747792017634,3.82634673,651.72,650.57,0.58734822]
[1747792017837,0.26728624,651.71,650.58,0.58734822]
[1747792018035,0.26728624,651.71,650.59,1.54353639]
[1747792018339,0.26728624,651.71,650.6,0.58734822]
[1747792018535,0.26728624,651.71,650.59,0.95618817]
[1747792018536,3.82634673,651.72,650.61,0.58734822]
[1747792018736,3.82634673,651.72,650.62,0.58734822]
[1747792018936,0.26728213,651.7,650.63,0.58734822]
[1747792019135,0.26728213,651.7,650.51,1.191]
[1747792019342,0.26728213,651.7,650.52,0.58734884]
[1747792019640,1.21428213,651.7,650.53,1.54355806]
[1747792019835,1.21428213,651.7,650.54,0.58734884]
[1747792020040,1.21428213,651.7,650.55,1.54355806]
[1747792020237,1.21428213,651.7,650.56,0.58734884]
[1747792020540,1.21428213,651.7,650.55,0.95620922]
[1747792020541,1.21428213,651.7,650.57,0.58731198]
[1747792020741,1.21428213,651.7,650.58,1.5435212]
[1747792020943,1.21428213,651.7,650.59,0.58731198]
[1747792021142,1.21428213,651.7,650.6,0.58731198]
[1747792021344,1.21428213,651.7,650.61,0.58731198]
[1747792021537,0.947,651.7,650.62,0.58731198]
[1747792021739,0.947,651.7,650.63,0.58731198]
[1747792021940,0.947,651.7,650.33,0.25713788]
[1747792022140,0.947,651.7,650.34,0.58726862]
[1747792022341,0.947,651.7,650.35,0.58726862]
[1747792022644,0.947,651.7,650.36,1.54325489]
[1747792022943,0.26730369,651.69,650.37,1.54325489]
[1747792023141,0.26730369,651.69,650.38,0.58726862]
[1747792023337,0.26730369,651.69,650.39,0.58726862]
[1747792023538,0.26730369,651.69,650.4,0.58726625]
[1747792023841,0.26730369,651.69,650.41,0.58726625]
[1747792024041,0.26730369,651.69,650.42,1.54325252]
[1747792024237,0.26730369,651.69,650.43,0.58726625]
[1747792024543,0.26730369,651.69,650.44,1.8506147]
[1747792024743,0.26730369,651.69,650.45,0.58726625]
[1747792024943,0.26730369,651.69,650.46,0.58726625]
[1747792025140,0.26730369,651.69,650.47,0.58726625]
[1747792025338,0.26730369,651.69,650.48,0.58726625]
[1747792025538,0.26730369,651.69,650.49,1.54325252]
[1747792025744,0.26730369,651.69,650.5,0.58726625]
[1747792025941,0.26730369,651.69,650.51,0.58726625]
[1747792026145,0.26730369,651.69,650.52,1.54325252]
[1747792026345,0.26730369,651.69,650.53,0.58726625]
[1747792026541,0.26730369,651.69,650.54,1.54325252]
[1747792026746,0.26730369,651.69,650.55,0.89462843]
[1747792027046,0.26730369,651.69,650.56,1.54325252]
[1747792027242,0.26730369,651.69,650.57,0.58726625]
[1747792027446,0.26730369,651.69,650.58,1.54325252]
[1747792027646,0.947,651.7,650.59,0.58726625]
[1747792027842,0.947,651.7,650.6,0.58726625]
[1747792028041,0.947,651.7,650.61,0.58726625]
[1747792028241,0.947,651.7,650.62,0.58726625]
[1747792028447,0.947,651.7,650.63,0.58726625]
[1747792028646,0.947,651.7,650.61,0.30736218]
[1747792028843,0.26727392,651.69,650.62,0.58754164]
[1747792029045,0.26727392,651.69,650.63,0.58754164]
[1747792029244,0.26727392,651.69,650.61,0.30736218]
[1747792029444,0.26727392,651.69,650.64,0.30736218]
[1747792030149,0.26727392,651.69,650.65,0.30736218]
[1747792030549,0.947,651.7,650.65,0.30736218]
[1747792031846,0.26729137,651.69,650.65,0.30736218]
[1747792032052,0.26729137,651.69,650.66,0.30736218]
[1747792033053,0.26729137,651.69,650.45,1.302]
[1747792033253,0.26729137,651.69,650.46,0.58781309]
[1747792033454,0.26729137,651.69,650.47,0.58781309]
[1747792033652,0.26729137,651.69,650.48,0.58781309]
[1747792033853,0.26729137,651.69,650.49,0.58781309]
[1747792034154,0.26729137,651.69,650.5,1.54498818]
[1747792034348,0.26729137,651.69,650.51,0.58784846]
[1747792034548,0.26729137,651.69,650.52,0.58784846]
[1747792034752,0.26729137,651.69,650.53,0.58784846]
[1747792034953,0.26729137,651.69,650.54,0.58784846]
[1747792035149,0.26729137,651.69,650.55,0.58784846]
[1747792035350,0.26729137,651.69,650.56,1.54498818]
[1747792035554,0.26729137,651.69,650.57,0.58784846]
[1747792035750,0.26729137,651.69,650.58,0.58784846]
[1747792035955,0.26729137,651.69,650.59,0.58784846]
[1747792036149,0.26729137,651.69,650.6,0.30736483]
[1747792036555,3.82634673,651.96,650.6,0.30736483]
[1747792036851,0.26727289,651.68,650.6,0.30736483]
[1747792037155,3.82634673,651.96,650.6,0.30736483]
[1747792037455,1.069,651.95,650.61,0.30736483]
[1747792037855,0.26727289,651.94,650.61,0.30736483]
[1747792038362,0.26727289,651.94,650.62,0.30736483]
[1747792039558,1.069,651.95,650.62,0.30736483]
[1747792039857,3.82634673,651.51,650.63,0.30736483]
[1747792040457,3.82634673,651.51,650.64,0.30736483]
[1747792041660,3.82634673,651.51,650.65,0.30736483]
[1747792042751,3.82634673,651.51,650.66,0.30736483]
[1747792044461,3.82634673,651.51,650.67,0.89586889]
[1747792044654,3.82634673,651.51,650.68,0.58850406]
[1747792044857,3.82634673,651.51,650.69,0.58850406]
[1747792045156,3.82634673,651.51,650.7,0.58850406]
[1747792045357,3.82634673,651.51,650.71,0.58868469]
[1747792045660,3.82634673,651.51,650.71,0.30736483]
[1747792047161,3.82634673,651.51,650.72,0.30736483]
[1747792048261,3.82634673,651.51,650.73,0.30736483]
[1747792049559,3.82634673,651.51,650.52,0.25713788]
[1747792049865,3.82634673,651.51,650.53,0.58874106]
[1747792050063,3.82634673,651.51,650.54,0.58874106]
[1747792050260,3.82634673,651.51,650.55,0.58874106]
[1747792050460,3.82634673,651.51,650.56,1.54839327]
[1747792050660,3.82634673,651.51,650.57,0.58874106]
[1747792050860,3.82634673,651.51,650.58,0.58874106]
[1747792051059,3.82634673,651.51,650.59,0.58874106]
[1747792051265,3.82634673,651.51,650.6,1.54839327]
[1747792051564,1.273,651.5,650.61,0.89611265]
[1747792051767,1.273,651.5,650.62,0.58874106]
[1747792051965,1.273,651.5,650.63,1.54839327]
[1747792052167,1.273,651.5,650.64,0.58874106]
[1747792052362,1.273,651.5,650.65,0.58874106]
[1747792052568,1.273,651.5,650.66,0.58874106]
[1747792052761,1.273,651.5,650.67,0.58874106]
[1747792052967,1.273,651.5,650.68,0.58874106]
[1747792053167,3.82634673,651.46,650.69,0.58874106]
[1747792053462,3.82634673,651.46,650.67,0.30737159]
[1747792053669,3.82634673,651.46,650.68,0.896082]
[1747792053967,3.82634673,651.46,650.69,0.58871041]
[1747792054266,3.82634673,651.46,650.68,0.30737159]
[1747792054470,3.82634673,651.46,650.69,0.58871579]
[1747792054665,3.82634673,651.46,650.68,0.30737159]
[1747792054866,3.82634673,651.46,650.51,0.25713788]
[1747792055167,3.82634673,651.46,650.52,1.5483302]
[1747792055367,3.82634673,651.46,650.53,0.58871875]
[1747792055568,3.82634673,651.46,650.54,0.58871875]
[1747792055864,3.82634673,651.46,650.55,0.58871875]
[1747792056061,3.82634673,651.46,650.56,0.89609484]
[1747792056265,3.82634673,651.46,650.57,0.58871875]
[1747792056462,3.82634673,651.46,650.58,0.58871875]
[1747792056766,3.82634673,651.46,650.59,1.5483302]
[1747792056966,3.82634673,651.46,650.6,0.58871875]
[1747792057169,3.82634673,651.46,650.61,0.58871875]
[1747792057364,3.82634673,651.46,650.61,0.30737609]
[1747792058061,3.82634673,651.46,650.54,1.623]
[1747792058261,3.82634673,651.46,650.55,0.58852497]
[1747792058468,3.82634673,651.46,650.56,0.58852497]
[1747792058666,3.82634673,651.46,650.54,1.623]
[1747792058866,0.26734168,651.45,650.57,0.30741583]
[1747792059872,0.26734168,651.45,650.54,1.623]
[1747792060571,3.82634673,651.46,650.54,1.623]
[1747792061971,0.26734579,651.45,650.54,1.623]
[1747792063572,3.82634673,651.46,650.54,1.623]
[1747792064667,1.273,651.5,650.54,1.623]
[1747792064867,0.26734579,651.45,650.54,1.623]
[1747792070979,0.26734579,651.45,650.55,0.58640579]
[1747792071180,0.26734579,651.45,650.54,1.623]
[1747792072580,1.273,651.5,650.55,0.58642303]
[1747792072879,1.273,651.5,650.54,1.623]
[1747792073879,0.2673273,651.49,650.54,1.623]
[1747792075675,1.273,651.5,650.54,1.623]
[1747792075877,0.2673273,651.49,650.54,1.623]
[1747792077283,0.2673273,651.49,650.55,0.30741197]
[1747792078585,1.273,651.5,650.55,0.30741197]
[1747792078780,1.273,651.5,650.56,0.30741197]
[1747792079886,0.2673273,651.49,650.56,0.30741197]
[1747792081085,0.2673273,651.49,650.35,0.25713788]
[1747792081280,0.2673273,651.49,650.36,0.58648909]
[1747792081484,0.2673273,651.49,650.37,1.54434941]
[1747792081685,3.82634673,651.8,650.38,1.54434941]
[1747792081881,0.26731396,651.49,650.39,0.58648909]
[1747792082086,0.26731396,651.49,650.4,1.54434941]
[1747792082286,3.82634673,651.8,650.41,0.89389991]
[1747792082487,3.82634673,651.8,650.42,0.58648909]
[1747792082686,3.82634673,651.8,650.43,1.54434941]
[1747792082886,0.26730882,651.79,650.44,0.58648909]
[1747792083081,0.26730882,651.79,650.45,0.58648909]
[1747792083283,0.26730882,651.79,650.46,1.54384963]
[1747792083481,0.26730882,651.79,650.47,1.54384963]
[1747792083786,0.26730882,651.79,650.48,0.58648909]
[1747792083982,0.26730882,651.79,650.49,0.58648909]
[1747792084183,0.26730882,651.79,650.5,0.58623114]
[1747792084387,0.26730882,651.79,650.51,0.58623114]
[1747792084587,1.106,651.78,650.52,0.89364196]
[1747792084785,1.106,651.78,650.53,1.54349352]
[1747792084986,1.37328213,651.78,650.54,0.58623114]
[1747792085186,1.37328213,651.78,650.55,1.54349352]
[1747792085388,1.37328213,651.78,650.56,0.58623114]
[1747792085585,1.37328213,651.78,650.57,0.58623114]
[1747792085784,1.37328213,651.78,650.52,0.30741082]
[1747792085989,1.37328213,651.78,650.57,0.30741082]
[1747792086189,1.37328213,651.78,650.58,0.58628434]
[1747792086385,1.37328213,651.78,650.57,0.30741082]
[1747792086591,1.37328213,651.78,650.58,0.58626978]
[1747792086799,1.37328213,651.78,650.57,0.30741082]
[1747792087091,1.37328213,651.78,650.58,0.58631501]
[1747792087291,1.37328213,651.78,650.58,0.30741082]
[1747792087592,1.106,651.78,650.59,0.58633106]
[1747792087791,1.106,651.78,650.58,0.30741082]
[1747792087991,0.26728316,651.77,650.59,0.58634583]
[1747792088287,0.26728316,651.77,650.58,0.30741082]
[1747792088489,0.26728316,651.77,650.59,0.58635131]
[1747792088686,0.26728316,651.77,650.6,0.30741082]
[1747792088991,0.26728316,651.77,650.61,0.58631154]
[1747792089191,0.26728316,651.77,650.62,0.58631154]
[1747792089391,0.26728316,651.77,650.63,0.58631154]
[1747792089591,0.26728316,651.77,650.64,0.58631154]
[1747792089788,0.26728316,651.77,650.6,0.30741082]
[1747792089985,0.26728316,651.77,650.61,0.58610385]
[1747792090188,0.26728316,651.77,650.62,0.58610385]
[1747792090388,0.26728316,651.77,650.63,0.58610385]
[1747792090684,0.26728316,651.77,650.64,0.58610385]
[1747792090886,0.26728316,651.77,650.61,0.30741082]
[1747792091091,0.26728316,651.77,650.62,0.58613048]
[1747792091391,0.26728316,651.77,650.63,0.58613048]
[1747792091589,0.26728316,651.77,650.45,1.263]
[1747792091590,0.26728316,651.77,650.64,0.58613048]
[1747792091790,0.26728316,651.77,650.62,0.30741082]
[1747792091991,0.26728316,651.77,650.63,0.58611584]
[1747792092186,0.26728316,651.77,650.64,0.58611584]
[1747792092385,0.26728316,651.77,650.65,0.30741082]
[1747792093792,0.26728316,651.77,650.45,1.263]
[1747792093987,0.26728316,651.77,650.46,0.58603797]
[1747792094189,0.26728316,651.77,650.47,0.58603797]
[1747792094385,0.26728316,651.77,650.48,0.58603797]
[1747792094689,0.26728316,651.77,650.49,1.62636933]
[1747792094889,0.26728316,651.77,650.5,0.5860013]
[1747792095086,0.26728316,651.77,650.51,0.5860013]
[1747792095291,0.26728316,651.77,650.52,0.5860013]
[1747792095586,0.26728316,651.77,650.53,1.62633266]
[1747792095786,0.26728316,651.77,650.54,0.5860013]
[1747792095991,0.26728316,651.77,650.55,0.5860013]
[1747792096190,0.26728316,651.77,650.56,0.5860013]
[1747792096391,0.26728316,651.77,650.57,0.5860013]
[1747792096588,1.106,651.78,650.57,0.5860013]
[1747792096589,1.106,651.78,650.58,0.5860013]